Cogmind - Beta 15 @@@ ROGUE MODE // 2025.07.07 @ 22:00:36 Player: Tereza Result: Destroyed by B-75 Beast with Magnetic Acceleration Cannon Performance ------------- Evolutions (2) 1000 Regions Visited (5) 1000 Robots Destroyed (135) 675 Value Destroyed (4017) 4017 Prototype IDs (4) 80 Alien Tech Used (0) 0 Bonus (1128) 1128 TOTAL SCORE: 7900 Bonus ------- High Alert Combat Kills 428 Entered Garrisons 200 Used RIF Installer 500 Cogmind --------- Core Integrity 0/550 Matter 230/300 Energy 24/265 System Corruption 0% Temperature Cool (79) Movement Core (900) Ox17 Location -8/Garrison Parts ------- > --- POWER (1) -------- Reinforced Ion Engine > --- PROPULSION (4) --- (None) > --- UTILITY (4) ------ Improved Cooling System High-capacity Storage Unit Advanced Visual Processing Unit > --- WEAPON (2) ------- (None) > --- INVENTORY (20) --- Light Nuclear Core High-capacity Matter Pod (200) Hacking Suite Tractor Beam Plasma Cannon Peak State ------------ > --- POWER ------------ Light Nuclear Core > --- PROPULSION ------- Light Treads Light Treads Light Treads Light Treads > --- UTILITY ---------- Improved Cooling System High-capacity Storage Unit Advanced Visual Processing Unit Improved Shield Generator > --- WEAPON ----------- Plasma Cannon Gauss Rifle > --- INVENTORY -------- Improved Ion Engine Light Nuclear Core Light Treads Light Treads Light Treads Light Treads Improved Cooling System High-capacity Matter Pod Experimental Sensor Array Improved Medium Armor Plating Improved Shield Generator Hacking Suite System Shield Tractor Beam Splice Drone Bay Plasma Cannon Plasma Cannon Plasma Cannon Rocket Launcher Rocket Launcher [Rating: 33] Favorites ----------- Power Improved Ion Engine Engine Improved Ion Engine Power Core Light Nuclear Core Propulsion Light Treads Treads Light Treads Utility High-capacity Storage Unit Device Improved Cooling System Storage High-capacity Storage Unit Processor Targeting Computer Protection Light Armor Plating Weapon Light Cannon Energy Cannon Plasma Cannon Ballistic Gun Light Assault Rifle Ballistic Cannon Light Cannon Launcher Rocket Launcher Build | -11 -10 -9 -9 -8 -8 ------- Run | Yrd Mat Mat Min Mat Gar Slots Evolved 4 | . . 2 . 2 . Power . | . . . . . . Propulsion 2 | . . 1 . 1 . Utility 2 | . . 1 . 1 . Weapon . | . . . . . . Parts Attached 69 | 6 7 21 5 14 16 Power 11 | 1 1 4 . 1 4 Engine 9 | 1 1 4 . 1 2 Core 2 | . . . . . 2 Reactor . | . . . . . . Propulsion 23 | 2 1 9 . 4 7 Treads 23 | 2 1 9 . 4 7 Leg . | . . . . . . Wheel . | . . . . . . Hover . | . . . . . . Flight . | . . . . . . Utility 18 | 1 3 3 3 6 2 Device 4 | . . . . 2 2 Storage 3 | 1 1 . 1 . . Processor 4 | . . 1 1 2 . Hackware . | . . . . . . Protection 7 | . 2 2 1 2 . Artifact . | . . . . . . Weapon 17 | 2 2 5 2 3 3 Energy Gun . | . . . . . . Energy Cannon 4 | . . . . 2 2 Ballistic Gun 6 | 2 1 2 . 1 . Ballistic Cannon 5 | . 1 2 1 . 1 Launcher 2 | . . 1 1 . . Special Weapon . | . . . . . . Impact Weapon . | . . . . . . Slashing Weapon . | . . . . . . Piercing Weapon . | . . . . . . Special Melee Weapon . | . . . . . . Unidentified Prototypes . | . . . . . . Parts Lost 24 | . 2 4 1 . 17 Power 2 | . . 1 . . 1 Propulsion 10 | . . 1 . . 9 Utility 2 | . . . . . 2 Weapon 10 | . 2 2 1 . 5 Highest Loss Streak 11 | . 2 1 1 . 11 To Critical Strikes . | . . . . . . Average Backups 18 | 3 14 19 19 19 19 Power 2 | . 1 1 3 2 2 Propulsion 3 | 1 3 4 4 3 3 Utility 6 | . 3 6 6 8 9 Weapon 5 | . 5 6 3 5 4 Tool/Special . | . . . . . . Unused Backups 37 | . 2 15 . 9 11 Power 4 | . . 2 . 1 1 Propulsion 3 | . . 3 . . . Utility 16 | . 1 3 . 3 9 Weapon 13 | . 1 7 . 4 1 Tool/Special 1 | . . . . 1 . Average Slot Usage (%) 97 | . 93 99 100 98 98 Engine 9 | . 14 11 11 9 3 Core 1 | . . . . . 5 Treads 32 | . 27 33 33 35 34 Device 3 | . . . . 2 17 Storage 11 | . 14 11 11 9 9 Processor 8 | . . 10 11 15 9 Protection 7 | . 7 10 11 8 . Energy Cannon 3 | . . . . 7 10 Ballistic Gun 11 | . 22 11 11 8 2 Ballistic Cannon 6 | . 5 11 11 1 4 Peak Build Rating 33 | 6 9 15 18 32 33 Average Rating 17 | 4 7 13 16 24 30 On Entrance 13 | . 6 9 15 17 32 Naked Turns . | . . . . . . Heaviest Build 67 | 12 50 56 56 67 67 Greatest Support 80 | 40 40 60 60 80 80 Greatest Overweight (x) 17 | . 1 . . . 17 Average Overweight (x) . | . . . . . . Largest Inventory Capacity 20 | 8 20 20 20 20 20 Average Capacity 19 | 6 19 20 20 20 19 Most Carried 20 | 4 20 20 20 20 20 Average Carried 18 | 3 14 19 19 19 19 Final Capacity 20 | 8 20 20 20 20 20 Final Carried 20 | 4 20 20 20 20 5 Class Distribution -------------------- 66% | Scavenger-Mutant 33% | Mutant Dominant Class ---------------- Mutant | -10/Materials Scavenger-Mutant | -9/Materials Scavenger-Mutant | -9/Mines Scavenger-Mutant | -8/Materials Scavenger-Mutant | -8/Garrison Resources | -11 -10 -9 -9 -8 -8 ----------- Run | Yrd Mat Mat Min Mat Gar Matter Collected 3113 | 260 413 1188 168 414 670 Remotely . | . . . . . . Salvage Created 3984 | . 492 1549 309 574 1060 Parts 264 | . 31 124 23 34 52 Haulers Intercepted 5 | . 2 2 . 1 . Recyclers Shooed 2 | . 1 1 . . . Parts Field Recycled . | . . . . . . Retrieved Matter . | . . . . . . Parts Self-Destructed . | . . . . . . Prevented . | . . . . . . Kills | -11 -10 -9 -9 -8 -8 ------- Run | Yrd Mat Mat Min Mat Gar Combat Hostiles Destroyed 116 | . 14 45 11 13 33 Guns 46 | . 11 24 7 2 2 Cannons 57 | . 1 18 2 9 27 AOE 13 | . 2 3 2 2 4 Classes Destroyed 12 | . 4 5 1 1 1 Worker 4 | . 1 2 . 1 . Tunneler 1 | . . . 1 . . Hauler 5 | . 2 2 . 1 . Recycler 3 | . . 2 1 . . Operator 3 | . . 2 . 1 . Watcher 3 | . . 3 . . . Swarmer 45 | . 6 18 7 3 11 Grunt 48 | . 8 18 4 5 13 Brawler 3 | . . 1 . . 2 Duelist 3 | . . . . . 3 Sentry 15 | . . 8 . 3 4 Hunter 2 | . . . . 2 . Best Kill Streak 10 | . 5 7 4 5 10 Combat Bots Only 10 | . 5 6 4 3 10 Max Kills in Single Turn 3 | . 2 3 3 3 2 Gunslinging . | . . . . . . Exploded 3 | . 2 3 2 2 2 Melee . | . . . . . . Uniques/NPCs Destroyed . | . . . . . . Combat | -11 -10 -9 -9 -8 -8 -------- Run | Yrd Mat Mat Min Mat Gar Hostile Shots Fired 586 | . 95 142 55 66 228 Missed 161 | . 23 39 13 18 68 Hits 425 | . 72 103 42 48 160 Melee 12 | . . . . . 12 Projectile 413 | . 72 103 42 48 148 Critical Strikes 14 | . 1 2 . 2 9 Damage Taken 5861 | . 813 1212 397 716 2723 Core 899 | . 103 185 48 39 524 Absorbed by Shields 299 | . . . . . 299 Redirected to Shielding 46 | . 46 . . . . Regen/Repaired (Parts) 333 | . 254 79 . . . Core Remaining (%) 66 | 100 58 . 41 . . Volleys Fired 360 | . 63 114 24 38 121 Largest 2 | . 2 2 2 2 2 Hottest 160 | . 50 63 56 113 160 Shots Fired 689 | . 126 220 48 76 219 Gun 306 | . 112 105 24 37 28 Cannon 368 | . 14 114 23 38 179 Launcher 15 | . . 1 1 1 12 Special . | . . . . . . Kinetic 530 | . 126 219 47 53 85 Thermal 144 | . . . . 22 122 Explosive 15 | . . 1 1 1 12 Electromagnetic . | . . . . . . Robot Hit Streak 18 | . 12 18 17 14 14 Robot Miss Streak 5 | . 4 4 4 4 5 Penetration Max 1 | . . . . . 1 Secondary Targets 1 | . 1 . . . . Max Gunslinging Chain 1 | . 1 . . . . Shots Hit Robots 424 | . 81 142 26 48 127 Core Hits 195 | . 36 70 15 25 49 Critical Kills . | . . . . . . Critical Parts Destroyed 1 | . . . 1 . . Critical Strikes 4 | . . 2 1 . 1 Destroy 1 | . . . 1 . . Blast 3 | . . 2 . . 1 Melee Attacks . | . . . . . . Impact . | . . . . . . Slashing . | . . . . . . Piercing . | . . . . . . Sneak Attacks . | . . . . . . Combat Hostiles . | . . . . . . Follow-up Attacks . | . . . . . . Damage Inflicted 9345 | . 1040 2772 661 1126 3746 Guns 2798 | . 606 1218 281 373 320 Cannons 5036 | . 150 1313 181 604 2788 Explosions 1477 | . 284 226 186 149 632 Melee . | . . . . . . Ramming 34 | . . 15 13 . 6 Kinetic 5481 | . 756 2531 462 570 1162 Thermal 2410 | . . . 57 407 1946 Explosive 1420 | . 284 226 129 149 632 Electromagnetic . | . . . . . . Impact . | . . . . . . Slashing . | . . . . . . Piercing . | . . . . . . Highest Corruption 3 | . 3 1 1 . . Average Corruption 2 | . 2 1 1 . . Corruption Purged . | . . . . . . Corruption Blocked . | . . . . . . Effects 40 | . 29 7 4 . . Message Errors 10 | . 7 3 . . . Matter Fused 14 | . 10 1 3 . . Heat Flow Errors 5 | . 3 2 . . . Energy Discharges 3 | . 2 1 . . . Data Loss (minor) 4 | . 3 . 1 . . Data Loss (major) 1 | . 1 . . . . Misfires 1 | . 1 . . . . Alerts 1 | . 1 . . . . Weapon Failures 1 | . 1 . . . . Overload Shots . | . . . . . . Overflow Damage 194 | . 50 62 . 12 70 Projectiles 91 | . . 9 . 12 70 Explosions 103 | . 50 53 . . . Melee . | . . . . . . Knockbacks 31 | . 4 17 2 2 6 Impact . | . . . . . . Kinetic 27 | . 3 14 2 2 6 Secondary 4 | . 1 3 . . . Self-Inflicted Damage 109 | . 58 30 . . 21 Shots 3 | . 1 1 . . 1 Rammed 3 | . . 1 1 . 1 Targets Rammed 3 | . . 1 1 . 1 Kicked . | . . . . . . Crushed . | . . . . . . Highest Temperature 341 | . 273 150 23 105 341 Average Temperature 39 | . 52 32 9 32 47 Received Heat Transfer 2052 | . 276 408 93 243 1032 Effects 6 | . 2 . . . 4 Interference 6 | . 2 . . . 4 Siege Activations . | . . . . . . Martial Activations . | . . . . . . Shielding Activations . | . . . . . . Robots Disrupted . | . . . . . . Combat Hostiles . | . . . . . . Robots Corrupted . | . . . . . . Combat Hostiles . | . . . . . . Parts Fried . | . . . . . . Impact Corruptions . | . . . . . . Robots Melted . | . . . . . . Combat Hostiles . | . . . . . . Parts Melted 4 | . . . . 1 3 Heat Transferred 4418 | . . . 50 670 3698 Parts Sabotaged . | . . . . . . Parts Stolen . | . . . . . . Parts Stripped . | . . . . . . Power Chain Reactions . | . . . . . . Alert | -11 -10 -9 -9 -8 -8 ------- Run | Yrd Mat Mat Min Mat Gar Maximum Alert Level 4 | . . 2 1 . 4 Low Security (%) 61 | 100 100 38 97 100 8 Level 1 16 | . . 35 2 . 27 Level 2 10 | . . 25 . . 12 Level 3 7 | . . . . . 36 Level 4 3 | . . . . . 14 Level 5 . | . . . . . . High Security . | . . . . . . Max Security . | . . . . . . Peak Influence 1160 | . 153 583 205 178 1160 Initial 205 | . . 32 205 67 84 Average 261 | . 66 256 104 106 676 Influence Increases 3683 | . 512 1293 319 419 1140 Destroy 0b10 Robot/C 2320 | . 280 900 220 260 660 Destroy 0b10 Robot/NC 95 | . 15 55 10 15 . Destroy Leader 406 | . 44 220 40 82 20 Successful Hack 56 | . 43 9 . 4 . Disable Machine 120 | . 15 30 30 45 . Anti-Garrison Action 250 | . . . . . 250 Destroy Structure 151 | . 25 19 19 13 75 Lose Combat Pursuer 285 | . 90 60 . . 135 Influence Decreases 2629 | . 434 843 673 463 216 Entered New Map 522 | . . 46 323 107 46 Time Decay 1717 | . 414 607 340 356 . Lost Part 240 | . 20 40 10 . 170 Purge Threat 150 | . . 150 . . . Squads Dispatched 11 | . 1 7 . 3 . Investigation 6 | . 1 4 . 1 . Extermination . | . . . . . . Reinforcement 4 | . . 2 . 2 . Assault 1 | . . 1 . . . Garrison . | . . . . . . Intercept . | . . . . . . Searches Triggered . | . . . . . . Construction Impeded . | . . . . . . Haulers Reinforced . | . . . . . . Active Scanning Responses . | . . . . . . Cargo Convoy Interrupts . | . . . . . . Stealth | -11 -10 -9 -9 -8 -8 --------- Run | Yrd Mat Mat Min Mat Gar Distress Signals 10 | . 4 3 . 3 . Communications Jammed . | . . . . . . Distress Signals . | . . . . . . Times Spotted 160 | . 32 61 11 18 38 Peak Tracking Total 7 | . 7 6 4 4 6 Tactical Retreats 10 | . 4 3 . . 3 Traps | -11 -10 -9 -9 -8 -8 ------- Run | Yrd Mat Mat Min Mat Gar Traps Triggered 10 | . 4 3 . 1 2 Indirectly . | . . . . . . Trap Hack Attempts . | . . . . . . Triggered . | . . . . . . Disarmed . | . . . . . . Reprogrammed . | . . . . . . Reused . | . . . . . . Traps Extracted . | . . . . . . Installed . | . . . . . . Triggered . | . . . . . . Machines | -11 -10 -9 -9 -8 -8 ---------- Run | Yrd Mat Mat Min Mat Gar Machines Disabled 10 | . 1 2 2 3 2 Max in Single Turn 2 | . 1 1 2 1 1 Garrison Relay 2 | . . . . . 2 Machines Repaired . | . . . . . . Machines Dismantled . | . . . . . . Machines Sabotaged . | . . . . . . Overloaded Fab Kills . | . . . . . . Hacking | -11 -10 -9 -9 -8 -8 --------- Run | Yrd Mat Mat Min Mat Gar Machines Accessed 25 | . 11 11 1 1 1 Terminals 18 | . 8 9 . . 1 Fabricators . | . . . . . . Repair Stations 2 | . 1 1 . . . Recycling Units 3 | . 2 1 . . . Scanalyzers . | . . . . . . Garrison Access 1 | . . . . 1 . Total Hacks 63 | . 31 27 1 2 2 Successful 32 | . 19 11 1 1 . Failed 30 | . 11 16 . 1 2 Catastrophic 8 | . 1 6 . . 1 Database Lockouts 1 | . 1 . . . . Manual 26 | . 10 16 . . . Terminals 47 | . 23 22 . . 2 Fabricators . | . . . . . . Repair Stations 7 | . 5 2 . . . Recycling Units 6 | . 3 3 . . . Scanalyzers . | . . . . . . Garrison Access 2 | . . . . 2 . Terminal Hacks 19 | . 12 6 1 . . Record 1 | . 1 . . . . Robot Analysis 4 | . 3 1 . . . Prototype ID Bank 3 | . 3 . . . . Open Door 1 | . . . 1 . . Branch Access Points 1 | . . 1 . . . Emergency Access Points 1 | . . 1 . . . Alert Level 2 | . 1 1 . . . Unreport Threat 1 | . . 1 . . . Patrol Status 1 | . 1 . . . . Transport Status 1 | . 1 . . . . Reinforcement Status 1 | . 1 . . . . Hauler Manifests 2 | . 1 1 . . . Fabricator Hacks . | . . . . . . Repair Station Hacks 6 | . 4 2 . . . Scan Component 3 | . 2 1 . . . Repair 3 | . 2 1 . . . Recycling Unit Hacks 6 | . 3 3 . . . Report Inventory 3 | . 2 1 . . . Retrieve Matter 1 | . . 1 . . . Retrieve Components 2 | . 1 1 . . . Scanalyzer . | . . . . . . Garrison Access Hacks 1 | . . . . 1 . Unlock Access 1 | . . . . 1 . Unauthorized Hacks . | . . . . . . Terminals . | . . . . . . Fabricators . | . . . . . . Repair Stations . | . . . . . . Recycling Units . | . . . . . . Scanalyzers . | . . . . . . Garrison Access . | . . . . . . Data Cores Recovered 1 | . . 1 . . . Used . | . . . . . . Hacking Detections 18 | . 9 8 . . 1 Full Trace Events 4 | . 1 2 . . 1 Feedback Events . | . . . . . . Feedback Blocked . | . . . . . . Robot Schematics Acquired . | . . . . . . Robots Built . | . . . . . . Authchips . | . . . . . . Time . | . . . . . . Total Robot Build Rating . | . . . . . . Part Schematics Acquired . | . . . . . . Parts Built . | . . . . . . Authchips . | . . . . . . Time . | . . . . . . Total Part Build Rating . | . . . . . . Parts Repaired 3 | . 2 1 . . . Time 78 | . 52 26 . . . Parts Recycled . | . . . . . . Recycled Matter . | . . . . . . Retrieved Matter . | . . . . . . Retrieved Components 10 | . 2 8 . . . Parts Scanalyzed . | . . . . . . Part Schematics Acquired . | . . . . . . Parts Damaged . | . . . . . . Bothacking | -11 -10 -9 -9 -8 -8 ------------ Run | Yrd Mat Mat Min Mat Gar Used RIF Installer 1 | . . . . . 1 Robots Hacked . | . . . . . . Non-combat . | . . . . . . Combat . | . . . . . . Robot Hacks Applied . | . . . . . . Relay Couplers Released 8 | . . . . . 8 Machine Destruction 8 | . . . . . 8 Fabnet Peak Effective % . | . . . . . . Robots Rewired . | . . . . . . Allies Hacked . | . . . . . . Hacks Repelled . | . . . . . . Allies | -11 -10 -9 -9 -8 -8 -------- Run | Yrd Mat Mat Min Mat Gar Total Allies . | . . . . . . Largest Group . | . . . . . . Highest-Rated Group . | . . . . . . Highest-Rated Ally . | . . . . . . Total Orders . | . . . . . . Ally Attacks . | . . . . . . Total Damage . | . . . . . . Kills . | . . . . . . Allies Corrupted . | . . . . . . Allies Melted . | . . . . . . Intel | -11 -10 -9 -9 -8 -8 ------- Run | Yrd Mat Mat Min Mat Gar Active Infowar (turns) 2786 | . . . 559 818 1409 Optics 2786 | . . . 559 818 1409 Robot Analysis Total 4 | . 3 1 . . . Derelict Logs Recovered 1 | . . . 1 . . Drone Launches . | . . . . . . Drone Recoveries . | . . . . . . Exploration | -11 -10 -9 -9 -8 -8 ------------- Run | Yrd Mat Mat Min Mat Gar Turns Passed 6718 | 78 1611 2026 762 818 1423 Spaces Moved 3029 | 42 581 980 418 405 603 Core 4 | 3 . . . . 1 Treads 3025 | 39 581 980 418 405 602 Legs . | . . . . . . Wheels . | . . . . . . Hover . | . . . . . . Flight . | . . . . . . Fastest Speed 50 | 50 160 160 160 160 160 Average Speed 174 | 152 231 160 160 160 164 Slowest Speed 900 | 160 240 160 160 160 900 Overloaded Moves . | . . . . . . Propulsion Burnouts . | . . . . . . Robots Hopped . | . . . . . . Potential Cave-ins . | . . . . . . Cave-ins Triggered . | . . . . . . Exploration Rate (%) 64 | 3 94 94 98 34 61 Regions Visited 5 Branch Regions 1 Pre-discovered Areas . | . . . . . . Known Exits Taken 2 | . . 1 . 1 . Unknown Exits Taken 3 | 1 1 . 1 . . Scrap Searched 1 | . . . 1 . . Spaces Dug . | . . . . . . Terrain Destroyed 140 | . 29 8 19 11 73 Melee . | . . . . . . Projectile 6 | . . . . 3 3 AOE 134 | . 29 8 19 8 70 Terrain Rammed . | . . . . . . Walls Destroyed . | . . . . . . Machines Disabled . | . . . . . . Actions | -11 -10 -9 -9 -8 -8 --------- Run | Yrd Mat Mat Min Mat Gar Total 3828 | 53 744 1241 465 509 816 Wait 212 | 2 67 71 5 16 51 Move 3025 | 41 580 979 417 405 603 Hop . | . . . . . . Pick Up 73 | 4 21 22 6 14 6 Fast Attach 16 | 6 3 2 . 2 3 Attach 19 | . 2 5 1 1 10 Detach 1 | . 1 . . . . Swap 50 | . 3 16 5 13 13 Drop 65 | . 4 31 6 20 4 Fire 360 | . 63 114 24 38 121 Melee . | . . . . . . Ram . | . . . . . . Kick . | . . . . . . Crush 3 | . . 1 1 . 1 Escape Stasis 4 | . . . . . 4 Rewire . | . . . . . . Trap . | . . . . . . Miscellaneous . | . . . . . . Route ------- -11/Scrapyard -10/Materials (discovered 5 exits: *Mat x3 / [*Min x2]) -9/Materials (discovered 5 exits: *Mat x3 / *Min x2) -9/Mines (discovered 2 exits: *Mat x2) -8/Materials -8/Garrison (discovered 1 exit: [*Fac]) History --------- Turn | Location | Event 18 | -11/Scrapyard | Discovered new exit (range 16) 79 | -11/Scrapyard | Entered Materials 171 | -10/Materials | Discovered new exit (range 16) 301 | -10/Materials | Build established: Mutant 379 | -10/Materials | Discovered new exit (range 10) 681 | -10/Materials | Central database locked down 957 | -10/Materials | Discovered new exit (range 9) 1201 | -10/Materials | Repaired Lgt. Treads 1228 | -10/Materials | Repaired Lgt. Treads 1241 | -10/Materials | Discovered new exit (range 12) 1444 | -10/Materials | Discovered new exit (range 16) 1690 | -10/Materials | Entered another Materials area 1690 | -9/Materials | Evolved 2 slots: Propulsion x1, Utility x1 2041 | -9/Materials | Discovered new exit (range 13) 2147 | -9/Materials | Discovered new exit (range 13) 2395 | -9/Materials | Discovered new exit (range 8) 2455 | -9/Materials | Build established: Scavenger-Mutant 2937 | -9/Materials | Repaired Lgt. Armor Plating 3042 | -9/Materials | Discovered new exit (range 4) 3114 | -9/Materials | Identified exit to Mines 3368 | -9/Materials | Discovered new exit (range 10) 3690 | -9/Materials | First assault squad dispatched 3716 | -9/Materials | Entered Mines 3772 | -9/Mines | Found the Drone Emporium 3784 | -9/Mines | Found Prototype Device 3851 | -9/Mines | Found a damaged Exp. Sensor Array with a note attached 3854 | -9/Mines | Found Prototype Device 4002 | -9/Mines | Learned Materials terminal intel 4150 | -9/Mines | Discovered new exit (range 14) 4278 | -9/Mines | Core integrity fell below 50% 4415 | -9/Mines | Discovered new exit (range 11) 4478 | -9/Mines | Entered Materials 4478 | -8/Materials | Evolved 2 slots: Propulsion x1, Utility x1 4479 | -8/Materials | Loaded intel: 11 terminal locations 5296 | -8/Materials | Identified exit to Garrison 5296 | -8/Materials | Entered Garrison 5384 | -8/Garrison | Triggered checkpoint 5507 | -8/Garrison | Installed Relay Interface Framework 5522 | -8/Garrison | Garrison Relay disabled 5708 | -8/Garrison | Triggered checkpoint 5904 | -8/Garrison | Destroyed 10 combat bots 6058 | -8/Garrison | Triggered checkpoint 6084 | -8/Garrison | Garrison Relay disabled 6366 | -8/Garrison | Lost 3 parts (1n2w) 6396 | -8/Garrison | Triggered checkpoint 6438 | -8/Garrison | Discovered new exit (range 17) 6440 | -8/Garrison | Triggered checkpoint 6647 | -8/Garrison | Spotted B-75 Beast 6647 | -8/Garrison | Spotted B-75 Beast 6701 | -8/Garrison | Core integrity fell below 50% 6715 | -8/Garrison | Core integrity fell below 20% 6719 | -8/Garrison | Destroyed by B-75 Beast with Magnetic Acceleration Cannon Last Messages --------------- 06693_ Lgt. Treads destroyed. 06704_ Rocket Launcher destroyed. 06704_ Knocked back. 06704_ Critical hit (Meltdown: +320). 06704_ Knocked back. 06705_ Overheating: System interference. 06705_ Adv. Visual Processing Unit temporarily disabled. 06705_ Imp. Cooling System temporarily disabled. 06707_ Imp. Ion Engine destroyed. 06710_ Overheating: System interference. 06710_ Imp. Shield Generator temporarily disabled. 06710_ Rocket Launcher temporarily disabled. 06710_ Plasma Cannon destroyed. 06711_ The unstable cave ceiling collapses. 06716_ Imp. Shield Generator destroyed. 06716_ Rocket Launcher destroyed. 06717_ Dropped Hcp. Storage Unit. 06718_ Acquired Hcp. Storage Unit. Map ----- +----------------------------------------------------+ | ??????????????????????### #???# ###????????????? | | ??????????????????????#"# #???# #"#????????????? | | ??????????????????????#" #???# "#????????????? | | ??????????????????????#" #???# "#????????????? | | ???????????????????????" #???# "?????????????? | | ????????????????????????# #???# #??????????????? | | ????????????????????????# #???# #??????????????? | | ????????????????????????# #???# #??????????????? | | ????????????????????????#!%#???# #??????????????? | | ??????????????????#####?# !#???# #?#####????????? | | ??????????????#####!!!### #???# ###!!!#???###### | | ??????????????# #???# #####""""" | | ??????????????# ######### #???# ###### # | | ??????????????# #???????# #???# %#????# ######### | | ??????????????# #???????# #???# =#????# #???????? | | ??????????????# #???????# #???# #????# #???????? | | ??????????????# #?????### #???#/ ###??# #???????? | | ??????????????# #?????# #???#% * #### ######### | | ??????????????# #?????# #???# =% " # | | ??????????????# #?????# #???# ############## | | ??????????????# #????#### #???# %###????????????? | | ??????????????# ###### # ##### ############# < | | ########??????# ^ % % | | #??????# /= %%* %BB | | =% #??????# ^ %!!] BB | | ##### #??????# !######%@!*;#####"+############## | | #???# #??????# #????## !%##???????????????????? | | #???# #???#### #######!*##????????????????????? | | ???# #???# " " #%*#?????????????????????? | | #???# #???# ## ####### #?????????????????????? | | ???## #####"## #????? #?????????????????????? | | ???#T ## ## #????? ?????????????????????? | | ???## ## ## #???? ????????####?????????? | | #### ##### BB ###]]] !!!#?????????? | | = BB #?????????? | | % #?????????? | | #### ## ## ##### # ## #?????????? | | ?### ## ## ###?# #???? #?????????? | | ?# #?# ##??????? #?????????? | | ?# #?# ###???????????????????? | | ?# * = #?## ## #????????????????????? | | ?# [ =%[ #??##??##????????????????????? | | ?### ## !## ###????????????????????????????? | | ####%= # # ######?????????????????????????? | | [ %[ * ^ ??????????????????????? | | [=%% ^ ??????????????????????? | | ####% = %^ #######????????????????????????? | | ???##"### ! ######??????????????????????????????? | | ????# #?# %= #???????????????????????????????????? | | ????# #?######???????????????????????????????????? | +----------------------------------------------------+ Best States ------------- Heat Dissipation 58 Energy Generation 14 Energy Capacity 265 Matter Stores 300 Matter Capacity 300 Sight Range 20 Terrain Scan Density 10 Armor Coverage 225 Weapon Shielding 33 Evasion (%) 40 Targeting Accuracy 5 Recoil Reduction 4 Item Schematics ----------------- None Robot Schematics ------------------ None Fabricated ------------ Nothing Repaired ---------- Lgt. Treads | 4% | -10/Materials Lgt. Treads | 14% | -10/Materials Lgt. Armor Plating | 12% | -9/Materials Alien Tech Used ----------------- None Achievements -------------- None Challenges ------------ None Game ------ Seed TeleporterScrapDiverter Manual? 0 Play Time 00:42:15 Cumulative 179.8 hours Start 2025.07.07 @ 21:16:29 End 2025.07.07 @ 22:00:36 Sessions 1 Manual Loads 0 Difficulty Rogue Special Mode None Game No. 229 Rogue 229 Adventurer 0 Explorer 0 Win Type - Total 3 Types 3/0/0/0/0/0/0/0/0/0 Lore% 70 Gallery% 55 Achievement% 53 Wizard Run 0 Options --------- Layout 1 ASCII 0 Keyboard 1 Movement Numpad Keybinds 0 Fullscreen 2 Font 24/Smallcaps Map View 50x35 Zoom Use 0% Tactical HUD 1 Map Filters NONE Filters NONE Steam 1 RUN: 992838a3-97f6-48df-b830-5a207a597f8e